[Event "Titled Tuesday Blitz June 21 Early 2022"]
[White "Deviprasath, Sharvesh"]
[Black "Kowalysko, Roman"]
[WhiteFideId "30938228"]
[BlackFideId "30918510"]
[WhiteElo "2102"]
[BlackElo "2136"]
[Result "1-0"]
[Round "08"]
[TimeControl "180+1"]
[Date "2022.06.21"]
[WhiteClock "0:00:06"]
[BlackClock "0:00:03"]

1. e4 {[%clk 0:02:34]}  c5 {[%clk 0:02:59]} 2. Nc3 {[%clk 0:02:32]}  Nc6 {[%clk 0:02:58]} 3. Bb5 {[%clk 0:02:31]}  Nd4 {[%clk 0:02:56]} 4. Nf3 {[%clk 0:02:31]}  e6 {[%clk 0:02:55]} 5. O-O {[%clk 0:02:29]}  a6 {[%clk 0:02:46]} 6. Bd3 {[%clk 0:02:25]}  Nxf3+ {[%clk 0:02:44]} 7. Qxf3 {[%clk 0:02:25]}  Nf6 {[%clk 0:02:43]} 8. e5 {[%clk 0:02:25]}  Ng8 {[%clk 0:02:39]} 9. Ne4 {[%clk 0:02:22]}  d5 {[%clk 0:02:38]} 10. exd6 {[%clk 0:02:13]}  Bxd6 {[%clk 0:02:38]} 11. b3 {[%clk 0:02:06]}  Be5 {[%clk 0:02:35]} 12. Ba3 {[%clk 0:02:06]}  Ne7 {[%clk 0:02:32]} 13. Bxc5 {[%clk 0:02:05]}  f5 {[%clk 0:02:27]} 14. Nc3 {[%clk 0:02:01]}  Bxh2+ {[%clk 0:02:24]} 15. Kxh2 {[%clk 0:01:58]}  Qc7+ {[%clk 0:02:23]} 16. Qg3 {[%clk 0:01:59]}  Qxc5 {[%clk 0:02:20]} 17. Qxg7 {[%clk 0:02:00]}  Rg8 {[%clk 0:02:14]} 18. Qh6 {[%clk 0:02:00]}  Rg6 {[%clk 0:02:05]} 19. Qe3 {[%clk 0:01:56]}  Qd6+ {[%clk 0:02:05]} 20. Kg1 {[%clk 0:01:54]}  Bd7 {[%clk 0:02:04]} 21. g3 {[%clk 0:01:54]}  O-O-O {[%clk 0:02:03]} 22. Rfe1 {[%clk 0:01:50]}  Nc6 {[%clk 0:02:02]} 23. Na4 {[%clk 0:01:47]}  Nd4 {[%clk 0:02:01]} 24. c3 {[%clk 0:01:46]}  Bxa4 {[%clk 0:02:01]} 25. cxd4 {[%clk 0:01:46]}  Bc6 {[%clk 0:01:58]} 26. Rac1 {[%clk 0:01:46]}  Kb8 {[%clk 0:01:52]} 27. Rc4 {[%clk 0:01:43]}  Bd5 {[%clk 0:01:51]} 28. Rc5 {[%clk 0:01:41]}  f4 {[%clk 0:01:42]} 29. Qe5 {[%clk 0:01:32]}  Qxe5 {[%clk 0:01:23]} 30. Rxe5 {[%clk 0:01:33]}  Rg4 {[%clk 0:01:23]} 31. Be2 {[%clk 0:01:09]}  Rg6 {[%clk 0:01:16]} 32. Bh5 {[%clk 0:00:59]}  Rh6 {[%clk 0:01:03]} 33. Kf1 {[%clk 0:00:56]}  fxg3 {[%clk 0:01:02]} 34. fxg3 {[%clk 0:00:54]}  Rf8+ {[%clk 0:01:02]} 35. Ke1 {[%clk 0:00:52]}  Rhf6 {[%clk 0:01:00]} 36. Be2 {[%clk 0:00:50]}  Rg8 {[%clk 0:00:53]} 37. Rc3 {[%clk 0:00:33]}  Rh6 {[%clk 0:00:45]} 38. Bc4 {[%clk 0:00:10]}  Rh1+ {[%clk 0:00:44]} 39. Ke2 {[%clk 0:00:09]}  Rh2+ {[%clk 0:00:37]} 40. Kd1 {[%clk 0:00:09]}  Bxc4 {[%clk 0:00:16]} 41. bxc4 {[%clk 0:00:10]}  Rf8 {[%clk 0:00:16]} 42. Rxe6 {[%clk 0:00:09]}  Rf1+ {[%clk 0:00:16]} 43. Kc2 {[%clk 0:00:08]}  Ra1 {[%clk 0:00:13]} 44. Ra3 {[%clk 0:00:07]}  Rg1 {[%clk 0:00:09]} 45. d5 {[%clk 0:00:08]}  Rgg2 {[%clk 0:00:09]} 46. Rd3 {[%clk 0:00:05]}  Kc7 {[%clk 0:00:05]} 47. Re7+ {[%clk 0:00:03]}  Kd6 {[%clk 0:00:04]} 48. Re6+ {[%clk 0:00:02]}  Kd7 {[%clk 0:00:04]} 49. Rb6 {[%clk 0:00:03]}  Kc7 {[%clk 0:00:04]} 50. Rf6 {[%clk 0:00:03]}  Kd7 {[%clk 0:00:02]} 51. Rf7+ {[%clk 0:00:04]}  Kd6 {[%clk 0:00:03]} 52. c5+ {[%clk 0:00:04]}  Kxc5 {[%clk 0:00:02]} 53. d6 {[%clk 0:00:05]}  Rh6 {[%clk 0:00:02]} 54. d7 {[%clk 0:00:05]}  Rc6 {[%clk 0:00:03]} 55. d8=Q {[%clk 0:00:05]}  Kb5+ {[%clk 0:00:03]} 56. Kb2 {[%clk 0:00:05]}  Re2 {[%clk 0:00:03]} 57. Rb3+ {[%clk 0:00:06]}  Kc5 {[%clk 0:00:03]} 58. Rf5+ {[%clk 0:00:06]}  Kc4 {[%clk 0:00:03]} 59. Qd5# {[%clk 0:00:06]} 1-0


[Site "https://www.chess.com"]

[Event "Titled Tuesday Blitz June 21 Early 2022"]
[White "Gubajdullin, Alexei"]
[Black "Topalov, Aleksandar"]
[WhiteFideId "4141202"]
[BlackFideId "925659"]
[WhiteElo "2280"]
[BlackElo "2179"]
[Result "1-0"]
[Round "08"]
[TimeControl "180+1"]
[Date "2022.06.21"]
[WhiteClock "0:00:16"]
[BlackClock "0:00:15"]

1. d4 {[%clk 0:02:47]}  Nf6 {[%clk 0:02:51]} 2. Nf3 {[%clk 0:02:47]}  g6 {[%clk 0:02:51]} 3. Bf4 {[%clk 0:02:46]}  Bg7 {[%clk 0:02:50]} 4. e3 {[%clk 0:02:46]}  O-O {[%clk 0:02:51]} 5. Be2 {[%clk 0:02:46]}  d6 {[%clk 0:02:51]} 6. O-O {[%clk 0:02:46]}  Nbd7 {[%clk 0:02:51]} 7. h3 {[%clk 0:02:46]}  b6 {[%clk 0:02:51]} 8. a3 {[%clk 0:02:45]}  Bb7 {[%clk 0:02:51]} 9. a4 {[%clk 0:02:44]}  a6 {[%clk 0:02:50]} 10. Nc3 {[%clk 0:02:42]}  Ne4 {[%clk 0:02:50]} 11. Nxe4 {[%clk 0:02:42]}  Bxe4 {[%clk 0:02:50]} 12. Nd2 {[%clk 0:02:42]}  Bb7 {[%clk 0:02:50]} 13. Bf3 {[%clk 0:02:42]}  Qc8 {[%clk 0:02:50]} 14. Bxb7 {[%clk 0:02:41]}  Qxb7 {[%clk 0:02:51]} 15. Qf3 {[%clk 0:02:41]}  Qxf3 {[%clk 0:02:50]} 16. Nxf3 {[%clk 0:02:41]}  e5 {[%clk 0:02:49]} 17. Bg3 {[%clk 0:02:39]}  exd4 {[%clk 0:02:41]} 18. exd4 {[%clk 0:02:38]}  Rfe8 {[%clk 0:02:40]} 19. Rfe1 {[%clk 0:02:38]}  Nf6 {[%clk 0:02:39]} 20. c3 {[%clk 0:02:38]}  b5 {[%clk 0:02:32]} 21. axb5 {[%clk 0:02:35]}  axb5 {[%clk 0:02:28]} 22. Kf1 {[%clk 0:02:34]}  Rxe1+ {[%clk 0:02:21]} 23. Rxe1 {[%clk 0:02:33]}  Nd5 {[%clk 0:02:21]} 24. Rb1 {[%clk 0:02:26]}  Bh6 {[%clk 0:02:15]} 25. Ne1 {[%clk 0:02:25]}  f5 {[%clk 0:02:07]} 26. Nd3 {[%clk 0:02:24]}  Kf7 {[%clk 0:02:00]} 27. Ke2 {[%clk 0:02:24]}  Ra2 {[%clk 0:01:50]} 28. Kd1 {[%clk 0:02:23]}  Ra8 {[%clk 0:01:36]} 29. Kc2 {[%clk 0:02:22]}  Re8 {[%clk 0:01:31]} 30. Re1 {[%clk 0:02:22]}  Rxe1 {[%clk 0:01:30]} 31. Nxe1 {[%clk 0:02:21]}  Ke6 {[%clk 0:01:24]} 32. h4 {[%clk 0:02:19]}  Bg7 {[%clk 0:01:20]} 33. Nd3 {[%clk 0:02:18]}  Bf6 {[%clk 0:01:19]} 34. Kd2 {[%clk 0:02:09]}  h6 {[%clk 0:01:19]} 35. f3 {[%clk 0:02:09]}  g5 {[%clk 0:01:18]} 36. hxg5 {[%clk 0:02:08]}  hxg5 {[%clk 0:01:18]} 37. Bf2 {[%clk 0:02:08]}  g4 {[%clk 0:01:17]} 38. fxg4 {[%clk 0:01:56]}  fxg4 {[%clk 0:01:17]} 39. Ke2 {[%clk 0:01:42]}  Bg5 {[%clk 0:01:15]} 40. g3 {[%clk 0:01:18]}  Kf5 {[%clk 0:01:13]} 41. Be1 {[%clk 0:01:17]}  Bh6 {[%clk 0:01:03]} 42. b3 {[%clk 0:01:15]}  Bg5 {[%clk 0:00:57]} 43. c4 {[%clk 0:01:14]}  bxc4 {[%clk 0:00:58]} 44. bxc4 {[%clk 0:01:14]}  Nb6 {[%clk 0:00:58]} 45. c5 {[%clk 0:01:12]}  Nd5 {[%clk 0:00:57]} 46. Ba5 {[%clk 0:01:00]}  Be3 {[%clk 0:00:49]} 47. Bxc7 {[%clk 0:00:54]}  Nxc7 {[%clk 0:00:48]} 48. Kxe3 {[%clk 0:00:49]}  Nd5+ {[%clk 0:00:43]} 49. Ke2 {[%clk 0:00:48]}  dxc5 {[%clk 0:00:40]} 50. dxc5 {[%clk 0:00:47]}  Ke4 {[%clk 0:00:39]} 51. c6 {[%clk 0:00:46]}  Kf5 {[%clk 0:00:36]} 52. Nb4 {[%clk 0:00:42]}  Nc7 {[%clk 0:00:35]} 53. Kd3 {[%clk 0:00:38]}  Ke5 {[%clk 0:00:35]} 54. Kc4 {[%clk 0:00:38]}  Ke4 {[%clk 0:00:36]} 55. Kc5 {[%clk 0:00:36]}  Kf3 {[%clk 0:00:35]} 56. Kd6 {[%clk 0:00:35]}  Nb5+ {[%clk 0:00:35]} 57. Kc5 {[%clk 0:00:33]}  Nc7 {[%clk 0:00:31]} 58. Kb6 {[%clk 0:00:28]}  Ne6 {[%clk 0:00:28]} 59. Nd3 {[%clk 0:00:27]}  Kxg3 {[%clk 0:00:20]} 60. Nc5 {[%clk 0:00:27]}  Kf3 {[%clk 0:00:19]} 61. Nxe6 {[%clk 0:00:26]}  g3 {[%clk 0:00:20]} 62. Nd4+ {[%clk 0:00:18]}  Ke4 {[%clk 0:00:17]} 63. Ne2 {[%clk 0:00:16]}  g2 {[%clk 0:00:17]} 64. c7 {[%clk 0:00:16]}  Ke3 {[%clk 0:00:17]} 65. Ng1 {[%clk 0:00:16]}  Kf2 {[%clk 0:00:18]} 66. c8=Q {[%clk 0:00:15]}  Kxg1 {[%clk 0:00:18]} 67. Qg4 {[%clk 0:00:15]}  Kf2 {[%clk 0:00:15]} 68. Qf4+ {[%clk 0:00:15]}  Ke1 {[%clk 0:00:15]} 69. Qg3+ {[%clk 0:00:15]}  Kf1 {[%clk 0:00:15]} 70. Qf3+ {[%clk 0:00:15]}  Kg1 {[%clk 0:00:16]} 71. Kc5 {[%clk 0:00:16]}  Kh1 {[%clk 0:00:16]} 72. Qh5+ {[%clk 0:00:16]}  Kg1 {[%clk 0:00:15]} 73. Kd4 {[%clk 0:00:16]} 1-0


[Site "https://www.chess.com"]

[Event "Titled Tuesday Blitz June 21 Early 2022"]
[White "Halkias, Stelios"]
[Black "So, Wesley"]
[WhiteFideId "4201809"]
[BlackFideId "5202213"]
[WhiteElo "2453"]
[BlackElo "2742"]
[Result "0-1"]
[Round "08"]
[TimeControl "180+1"]
[Date "2022.06.21"]
[WhiteClock "0:00:02"]
[BlackClock "0:00:31"]

1. Nf3 {[%clk 0:03:00]}  d5 {[%clk 0:02:59]} 2. d4 {[%clk 0:02:59]}  Nf6 {[%clk 0:02:58]} 3. c4 {[%clk 0:02:58]}  e6 {[%clk 0:02:58]} 4. g3 {[%clk 0:02:58]}  Bb4+ {[%clk 0:02:53]} 5. Nbd2 {[%clk 0:02:56]}  dxc4 {[%clk 0:02:52]} 6. Qc2 {[%clk 0:02:47]}  b5 {[%clk 0:02:50]} 7. a4 {[%clk 0:02:45]}  c6 {[%clk 0:02:48]} 8. Bg2 {[%clk 0:02:44]}  Bb7 {[%clk 0:02:48]} 9. O-O {[%clk 0:02:37]}  O-O {[%clk 0:02:47]} 10. e4 {[%clk 0:02:37]}  Nbd7 {[%clk 0:02:36]} 11. e5 {[%clk 0:02:24]}  Nd5 {[%clk 0:02:33]} 12. Ne4 {[%clk 0:02:24]}  h6 {[%clk 0:02:30]} 13. Bd2 {[%clk 0:02:24]}  Be7 {[%clk 0:02:26]} 14. b3 {[%clk 0:02:17]}  cxb3 {[%clk 0:02:23]} 15. Qxb3 {[%clk 0:02:17]}  a6 {[%clk 0:02:21]} 16. Rfc1 {[%clk 0:02:15]}  Qb6 {[%clk 0:02:20]} 17. Nd6 {[%clk 0:01:42]}  Bxd6 {[%clk 0:02:07]} 18. exd6 {[%clk 0:01:42]}  c5 {[%clk 0:02:08]} 19. Ne5 {[%clk 0:01:42]}  c4 {[%clk 0:01:58]} 20. Nxd7 {[%clk 0:01:28]}  Qxd6 {[%clk 0:01:56]} 21. Rxc4 {[%clk 0:01:23]}  Qxd7 {[%clk 0:01:50]} 22. Rc5 {[%clk 0:01:21]}  Rfc8 {[%clk 0:01:31]} 23. axb5 {[%clk 0:00:58]}  Rxc5 {[%clk 0:01:25]} 24. dxc5 {[%clk 0:00:58]}  axb5 {[%clk 0:01:24]} 25. Rxa8+ {[%clk 0:00:29]}  Bxa8 {[%clk 0:01:25]} 26. Qa3 {[%clk 0:00:27]}  Bc6 {[%clk 0:01:23]} 27. Qa5 {[%clk 0:00:26]}  f6 {[%clk 0:01:16]} 28. h3 {[%clk 0:00:26]}  Kf7 {[%clk 0:01:16]} 29. Bf3 {[%clk 0:00:23]}  Ne7 {[%clk 0:01:15]} 30. Bh5+ {[%clk 0:00:23]}  g6 {[%clk 0:01:13]} 31. Be2 {[%clk 0:00:15]}  Qd5 {[%clk 0:01:13]} 32. f3 {[%clk 0:00:15]}  Qxc5+ {[%clk 0:01:13]} 33. Kf1 {[%clk 0:00:15]}  Nf5 {[%clk 0:01:11]} 34. Qc7+ {[%clk 0:00:10]}  Ne7 {[%clk 0:01:02]} 35. Bxh6 {[%clk 0:00:09]}  Qh5 {[%clk 0:00:44]} 36. Bf4 {[%clk 0:00:08]}  Qxh3+ {[%clk 0:00:42]} 37. Ke1 {[%clk 0:00:07]}  e5 {[%clk 0:00:41]} 38. Be3 {[%clk 0:00:07]}  Qxg3+ {[%clk 0:00:37]} 39. Kd2 {[%clk 0:00:07]}  Qh3 {[%clk 0:00:37]} 40. Qb6 {[%clk 0:00:03]}  Qd7+ {[%clk 0:00:36]} 41. Ke1 {[%clk 0:00:04]}  Nd5 {[%clk 0:00:36]} 42. Qc5 {[%clk 0:00:02]}  Nxe3 {[%clk 0:00:36]} 43. Qxe3 {[%clk 0:00:02]}  g5 {[%clk 0:00:35]} 44. Qc5 {[%clk 0:00:02]}  Qd5 {[%clk 0:00:35]} 45. Qa7+ {[%clk 0:00:02]}  Kg6 {[%clk 0:00:34]} 46. Qc7 {[%clk 0:00:02]}  Qd7 {[%clk 0:00:33]} 47. Qb6 {[%clk 0:00:01]}  Kg7 {[%clk 0:00:32]} 48. Qc5 {[%clk 0:00:01]}  Qb7 {[%clk 0:00:31]} 49. Qd6 {[%clk 0:00:01]}  Bxf3 {[%clk 0:00:29]} 50. Bxf3 {[%clk 0:00:01]}  Qxf3 {[%clk 0:00:30]} 51. Qe7+ {[%clk 0:00:01]}  Kg6 {[%clk 0:00:31]} 52. Qe8+ {[%clk 0:00:02]}  Kf5 {[%clk 0:00:31]} 53. Qd7+ {[%clk 0:00:02]}  Kf4 {[%clk 0:00:31]} 0-1


[Site "https://www.chess.com"]

[Event "Titled Tuesday Blitz June 21 Early 2022"]
[White "Hansen, Eric"]
[Black "Jakubowska, Anna"]
[WhiteFideId "2606771"]
[BlackFideId "1121952"]
[WhiteElo "2568"]
[BlackElo "1878"]
[Result "1-0"]
[Round "08"]
[TimeControl "180+1"]
[Date "2022.06.21"]
[WhiteClock "0:00:46"]
[BlackClock "0:00:32"]

1. d4 {[%clk 0:02:58]}  d5 {[%clk 0:02:55]} 2. c4 {[%clk 0:02:53]}  c6 {[%clk 0:02:55]} 3. Nc3 {[%clk 0:02:53]}  Nf6 {[%clk 0:02:54]} 4. Nf3 {[%clk 0:02:52]}  e6 {[%clk 0:02:53]} 5. e3 {[%clk 0:02:52]}  Nbd7 {[%clk 0:02:53]} 6. Bd3 {[%clk 0:02:51]}  dxc4 {[%clk 0:02:52]} 7. Bxc4 {[%clk 0:02:52]}  b5 {[%clk 0:02:53]} 8. Bd3 {[%clk 0:02:52]}  a6 {[%clk 0:02:53]} 9. O-O {[%clk 0:02:52]}  c5 {[%clk 0:02:51]} 10. b3 {[%clk 0:02:46]}  Bb7 {[%clk 0:02:49]} 11. Bb2 {[%clk 0:02:46]}  Be7 {[%clk 0:02:46]} 12. a4 {[%clk 0:02:46]}  b4 {[%clk 0:02:43]} 13. Nb1 {[%clk 0:02:46]}  O-O {[%clk 0:02:41]} 14. Nbd2 {[%clk 0:02:46]}  cxd4 {[%clk 0:02:37]} 15. Nxd4 {[%clk 0:02:45]}  Nc5 {[%clk 0:02:34]} 16. Be2 {[%clk 0:02:45]}  Rc8 {[%clk 0:02:26]} 17. Rc1 {[%clk 0:02:44]}  Qd7 {[%clk 0:02:21]} 18. Nc4 {[%clk 0:02:42]}  Nfe4 {[%clk 0:01:56]} 19. Nb6 {[%clk 0:02:18]}  Qd6 {[%clk 0:01:42]} 20. Nxc8 {[%clk 0:02:17]}  Rxc8 {[%clk 0:01:41]} 21. Bc4 {[%clk 0:02:05]}  Bf6 {[%clk 0:01:31]} 22. Qe2 {[%clk 0:02:04]}  Qe5 {[%clk 0:01:27]} 23. Rfd1 {[%clk 0:01:58]}  Qg5 {[%clk 0:01:21]} 24. f3 {[%clk 0:01:57]}  Nd6 {[%clk 0:01:15]} 25. e4 {[%clk 0:01:01]}  Nxc4 {[%clk 0:01:07]} 26. Rxc4 {[%clk 0:01:00]}  Rd8 {[%clk 0:01:00]} 27. h4 {[%clk 0:00:57]}  Qe5 {[%clk 0:00:52]} 28. Rd2 {[%clk 0:00:49]}  Be7 {[%clk 0:00:39]} 29. Nc6 {[%clk 0:00:46]}  Rd5 {[%clk 0:00:32]} 1-0


[Site "https://www.chess.com"]

[Event "Titled Tuesday Blitz June 21 Early 2022"]
[White "Jaracz, Pawel"]
[Black "Sethuraman, S.P."]
[WhiteFideId "1102222"]
[BlackFideId "5021596"]
[WhiteElo "2459"]
[BlackElo "2473"]
[Result "0-1"]
[Round "08"]
[TimeControl "180+1"]
[Date "2022.06.21"]
[WhiteClock "0:00:04"]
[BlackClock "0:00:36"]

1. e4 {[%clk 0:03:00]}  c5 {[%clk 0:02:54]} 2. Nf3 {[%clk 0:03:01]}  Nc6 {[%clk 0:02:54]} 3. Bb5 {[%clk 0:02:59]}  e6 {[%clk 0:02:53]} 4. O-O {[%clk 0:02:57]}  Nge7 {[%clk 0:02:53]} 5. d4 {[%clk 0:02:57]}  cxd4 {[%clk 0:02:51]} 6. Nxd4 {[%clk 0:02:57]}  a6 {[%clk 0:02:45]} 7. Nxc6 {[%clk 0:02:51]}  bxc6 {[%clk 0:02:43]} 8. Bd3 {[%clk 0:02:51]}  Ng6 {[%clk 0:02:40]} 9. f4 {[%clk 0:02:49]}  d5 {[%clk 0:02:35]} 10. Nd2 {[%clk 0:02:47]}  Be7 {[%clk 0:02:25]} 11. Qe2 {[%clk 0:02:41]}  O-O {[%clk 0:02:23]} 12. Kh1 {[%clk 0:02:38]}  Bd6 {[%clk 0:02:16]} 13. e5 {[%clk 0:02:30]}  Bc7 {[%clk 0:02:16]} 14. Nf3 {[%clk 0:02:07]}  f6 {[%clk 0:02:16]} 15. Bd2 {[%clk 0:02:00]}  a5 {[%clk 0:02:07]} 16. Rae1 {[%clk 0:01:45]}  f5 {[%clk 0:02:02]} 17. c4 {[%clk 0:01:44]}  Ne7 {[%clk 0:01:56]} 18. Rc1 {[%clk 0:01:44]}  Bb6 {[%clk 0:01:41]} 19. Rc2 {[%clk 0:01:41]}  c5 {[%clk 0:01:39]} 20. Be3 {[%clk 0:01:32]}  d4 {[%clk 0:01:39]} 21. Bd2 {[%clk 0:01:18]}  a4 {[%clk 0:01:38]} 22. h3 {[%clk 0:01:18]}  Bb7 {[%clk 0:01:38]} 23. Kh2 {[%clk 0:01:18]}  Qd7 {[%clk 0:01:37]} 24. Rg1 {[%clk 0:01:16]}  Qc6 {[%clk 0:01:26]} 25. Rcc1 {[%clk 0:01:16]}  Ng6 {[%clk 0:01:24]} 26. Rcf1 {[%clk 0:01:16]}  Ne7 {[%clk 0:01:18]} 27. g4 {[%clk 0:01:13]}  fxg4 {[%clk 0:01:14]} 28. hxg4 {[%clk 0:01:12]}  g6 {[%clk 0:01:05]} 29. Ng5 {[%clk 0:01:11]}  Qd7 {[%clk 0:01:04]} 30. Be4 {[%clk 0:01:06]}  Nc6 {[%clk 0:01:03]} 31. Kg3 {[%clk 0:01:01]}  h6 {[%clk 0:01:02]} 32. Nf3 {[%clk 0:01:00]}  Qg7 {[%clk 0:01:00]} 33. Rh1 {[%clk 0:00:52]}  Bc7 {[%clk 0:00:59]} 34. Qd3 {[%clk 0:00:51]}  g5 {[%clk 0:00:55]} 35. Rh5 {[%clk 0:00:42]}  gxf4+ {[%clk 0:00:54]} 36. Kg2 {[%clk 0:00:37]}  Qxg4+ {[%clk 0:00:53]} 37. Kf2 {[%clk 0:00:34]}  Qxh5 {[%clk 0:00:53]} 38. Rg1+ {[%clk 0:00:02]}  Kh8 {[%clk 0:00:53]} 39. Qf1 {[%clk 0:00:03]}  Nxe5 {[%clk 0:00:43]} 40. Rh1 {[%clk 0:00:03]}  Ng4+ {[%clk 0:00:39]} 41. Ke2 {[%clk 0:00:03]}  Qxh1 {[%clk 0:00:38]} 42. Qxh1 {[%clk 0:00:03]}  Bxe4 {[%clk 0:00:39]} 43. Qh4 {[%clk 0:00:04]}  d3+ {[%clk 0:00:36]} 44. Kd1 {[%clk 0:00:04]}  Bxf3+ {[%clk 0:00:36]} 0-1


[Site "https://www.chess.com"]

[Event "Titled Tuesday Blitz June 21 Early 2022"]
[White "Jia, Haoxiang"]
[Black "Estrada Nieto, Julian"]
[WhiteFideId "8602999"]
[BlackFideId "5101018"]
[WhiteElo "2610"]
[BlackElo "2252"]
[Result "1-0"]
[Round "08"]
[TimeControl "180+1"]
[Date "2022.06.21"]
[WhiteClock "0:01:03"]
[BlackClock "0:00:01"]

1. e4 {[%clk 0:03:00]}  e5 {[%clk 0:02:59]} 2. Nf3 {[%clk 0:03:01]}  Nc6 {[%clk 0:02:59]} 3. Bb5 {[%clk 0:03:00]}  a6 {[%clk 0:02:59]} 4. Ba4 {[%clk 0:03:00]}  Nf6 {[%clk 0:02:59]} 5. d3 {[%clk 0:03:01]}  d6 {[%clk 0:02:57]} 6. O-O {[%clk 0:03:01]}  g6 {[%clk 0:02:57]} 7. c3 {[%clk 0:02:55]}  Bg7 {[%clk 0:02:57]} 8. Bg5 {[%clk 0:02:55]}  h6 {[%clk 0:02:54]} 9. Be3 {[%clk 0:02:53]}  O-O {[%clk 0:02:53]} 10. h3 {[%clk 0:02:54]}  Bd7 {[%clk 0:02:47]} 11. Nbd2 {[%clk 0:02:53]}  Qe8 {[%clk 0:02:44]} 12. Bc2 {[%clk 0:02:51]}  Nh5 {[%clk 0:02:38]} 13. Re1 {[%clk 0:02:47]}  f5 {[%clk 0:02:38]} 14. exf5 {[%clk 0:02:46]}  gxf5 {[%clk 0:02:37]} 15. Nf1 {[%clk 0:02:43]}  Qg6 {[%clk 0:02:30]} 16. Kh1 {[%clk 0:02:41]}  Kh8 {[%clk 0:02:29]} 17. Qd2 {[%clk 0:02:31]}  f4 {[%clk 0:02:24]} 18. d4 {[%clk 0:02:26]}  fxe3 {[%clk 0:02:22]} 19. Nxe3 {[%clk 0:02:09]}  Qf7 {[%clk 0:02:04]} 20. dxe5 {[%clk 0:02:06]}  Nxe5 {[%clk 0:01:48]} 21. Nxe5 {[%clk 0:01:49]}  Bxe5 {[%clk 0:01:41]} 22. Ng4 {[%clk 0:01:48]}  Bf4 {[%clk 0:01:36]} 23. Qd3 {[%clk 0:01:46]}  Bf5 {[%clk 0:01:26]} 24. Qd4+ {[%clk 0:01:43]}  Qg7 {[%clk 0:01:21]} 25. Bxf5 {[%clk 0:01:34]}  Qxd4 {[%clk 0:01:13]} 26. cxd4 {[%clk 0:01:35]}  Rxf5 {[%clk 0:01:12]} 27. Re7 {[%clk 0:01:32]}  d5 {[%clk 0:01:03]} 28. Rae1 {[%clk 0:01:26]}  Raf8 {[%clk 0:01:01]} 29. g3 {[%clk 0:01:23]}  Bd6 {[%clk 0:00:55]} 30. R7e6 {[%clk 0:01:24]}  Nf6 {[%clk 0:00:52]} 31. f4 {[%clk 0:01:21]}  Kg7 {[%clk 0:00:35]} 32. Kg2 {[%clk 0:01:19]}  Nxg4 {[%clk 0:00:32]} 33. hxg4 {[%clk 0:01:19]}  R5f6 {[%clk 0:00:32]} 34. R6e3 {[%clk 0:01:17]}  c5 {[%clk 0:00:30]} 35. Rd3 {[%clk 0:01:15]}  c4 {[%clk 0:00:25]} 36. Rde3 {[%clk 0:01:16]}  R6f7 {[%clk 0:00:18]} 37. Re6 {[%clk 0:01:15]}  Rf6 {[%clk 0:00:18]} 38. R6e3 {[%clk 0:01:15]}  Rc8 {[%clk 0:00:18]} 39. Rh1 {[%clk 0:01:15]}  Bb4 {[%clk 0:00:15]} 40. Rh5 {[%clk 0:01:11]}  Rd8 {[%clk 0:00:12]} 41. Ree5 {[%clk 0:01:11]}  c3 {[%clk 0:00:08]} 42. bxc3 {[%clk 0:01:09]}  Bxc3 {[%clk 0:00:09]} 43. g5 {[%clk 0:01:08]}  hxg5 {[%clk 0:00:08]} 44. Rexg5+ {[%clk 0:01:07]}  Rg6 {[%clk 0:00:07]} 45. Rxd5 {[%clk 0:01:07]}  Rxd5 {[%clk 0:00:06]} 46. Rxd5 {[%clk 0:01:08]}  Rb6 {[%clk 0:00:05]} 47. Kf3 {[%clk 0:01:05]}  Rb2 {[%clk 0:00:03]} 48. g4 {[%clk 0:01:05]}  Rd2 {[%clk 0:00:03]} 49. Rd7+ {[%clk 0:01:04]}  Kf6 {[%clk 0:00:02]} 50. g5+ {[%clk 0:01:03]}  Ke6 {[%clk 0:00:02]} 51. Rxb7 {[%clk 0:01:02]}  Bxd4 {[%clk 0:00:02]} 52. Ke4 {[%clk 0:01:02]}  Bc5 {[%clk 0:00:02]} 53. f5+ {[%clk 0:01:02]}  Kd6 {[%clk 0:00:02]} 54. f6 {[%clk 0:01:02]}  Rd4+ {[%clk 0:00:01]} 55. Kf5 {[%clk 0:01:03]} 1-0


[Site "https://www.chess.com"]

[Event "Titled Tuesday Blitz June 21 Early 2022"]
[White "Korchmar, Vasiliy"]
[Black "Terry, Renato"]
[WhiteFideId "24131750"]
[BlackFideId "3803457"]
[WhiteElo "2370"]
[BlackElo "2577"]
[Result "0-1"]
[Round "08"]
[TimeControl "180+1"]
[Date "2022.06.21"]
[WhiteClock "0:00:02"]
[BlackClock "0:01:10"]

1. e4 {[%clk 0:03:00]}  g6 {[%clk 0:03:00]} 2. d4 {[%clk 0:02:59]}  Bg7 {[%clk 0:03:00]} 3. c3 {[%clk 0:02:59]}  d6 {[%clk 0:03:00]} 4. Bd3 {[%clk 0:02:59]}  e5 {[%clk 0:03:00]} 5. Nf3 {[%clk 0:02:58]}  Nc6 {[%clk 0:03:00]} 6. d5 {[%clk 0:02:55]}  Nce7 {[%clk 0:03:00]} 7. c4 {[%clk 0:02:55]}  c5 {[%clk 0:02:58]} 8. Nc3 {[%clk 0:02:55]}  h6 {[%clk 0:02:57]} 9. h3 {[%clk 0:02:54]}  f5 {[%clk 0:02:56]} 10. exf5 {[%clk 0:02:48]}  gxf5 {[%clk 0:02:56]} 11. Nh4 {[%clk 0:02:43]}  Nf6 {[%clk 0:02:55]} 12. g4 {[%clk 0:02:43]}  fxg4 {[%clk 0:02:53]} 13. Ng6 {[%clk 0:02:39]}  Nxg6 {[%clk 0:02:50]} 14. Bxg6+ {[%clk 0:02:39]}  Kf8 {[%clk 0:02:50]} 15. hxg4 {[%clk 0:01:45]}  Bxg4 {[%clk 0:02:51]} 16. f3 {[%clk 0:01:42]}  Bd7 {[%clk 0:02:51]} 17. Be3 {[%clk 0:01:38]}  Rb8 {[%clk 0:02:25]} 18. Qd2 {[%clk 0:01:37]}  b5 {[%clk 0:02:25]} 19. Bxh6 {[%clk 0:01:31]}  Bxh6 {[%clk 0:02:08]} 20. Rxh6 {[%clk 0:01:31]}  Kg7 {[%clk 0:02:09]} 21. Qg5 {[%clk 0:01:18]}  Nxd5 {[%clk 0:01:43]} 22. Qxd8 {[%clk 0:00:51]}  Rhxd8 {[%clk 0:01:41]} 23. Nxd5 {[%clk 0:00:43]}  Kxh6 {[%clk 0:01:40]} 24. Be4 {[%clk 0:00:41]}  Bc6 {[%clk 0:01:30]} 25. O-O-O {[%clk 0:00:33]}  Bxd5 {[%clk 0:01:30]} 26. Bxd5 {[%clk 0:00:33]}  bxc4 {[%clk 0:01:27]} 27. Bxc4 {[%clk 0:00:22]}  Kg5 {[%clk 0:01:26]} 28. Rg1+ {[%clk 0:00:17]}  Kf4 {[%clk 0:01:25]} 29. Bd5 {[%clk 0:00:18]}  Rd7 {[%clk 0:01:16]} 30. Kd2 {[%clk 0:00:15]}  Rxb2+ {[%clk 0:01:14]} 31. Kd3 {[%clk 0:00:09]}  Rb4 {[%clk 0:01:12]} 32. Rg4+ {[%clk 0:00:07]}  Kf5 {[%clk 0:01:12]} 33. Be4+ {[%clk 0:00:02]}  Kf6 {[%clk 0:01:10]} 0-1


[Site "https://www.chess.com"]